lending/lending_fUSD_20250316
["ID","MTS","AMOUNT","RATE_DAILY","PERIOD"]
[356234259,1742113857321,-500.0,0.00044108,120]
[356234260,1742113857330,-500.0,0.00044108,120]
[356234261,1742113857340,-500.0,0.00044108,120]
[356234262,1742113857349,-500.0,0.00044108,120]
[356234263,1742113857359,-500.0,0.00044108,120]
[356234264,1742113857368,-500.0,0.00044108,120]
[356234265,1742113857378,-727.99,0.00044108,120]
[356234266,1742113857388,-500.0,0.00044108,120]
[356234267,1742113857397,-500.0,0.00044108,120]
[356234268,1742113857407,-500.0,0.00044108,120]
[356234269,1742113857417,-500.0,0.00044108,120]
[356234270,1742113857426,-544.7,0.00044108,120]
[356234271,1742113857436,-500.0,0.00044108,120]
[356234272,1742113857445,-534.56,0.00044108,120]
[356234273,1742113857455,-475.73264677,0.00044108,120]
[356234274,1742113857465,-500.0,0.00044108,120]
[356234275,1742113857474,-500.0,0.00044108,120]
[356234276,1742113857484,-500.0,0.00044108,120]
[356234277,1742113857494,-500.0,0.00044108,120]
[356234278,1742113857504,-611.3,0.00044108,120]
[356234279,1742113857514,-1660.0,0.00044108,120]
[356234280,1742113857526,-500.0,0.00044108,120]
[356234281,1742113857535,-500.0,0.00044108,120]
[356234282,1742113857546,-500.0,0.00044108,120]
[356234283,1742113857555,-500.0,0.00044108,120]
[356234284,1742113857565,-500.0,0.00044108,120]
[356234285,1742113857575,-500.0,0.00044108,120]
[356234286,1742113857584,-500.0,0.00044108,120]
[356234287,1742113857593,-500.0,0.00044108,120]
[356234288,1742113857603,-500.0,0.00044108,120]
[356234289,1742113857612,-500.0,0.00044108,120]
[356234290,1742113857621,-537.84297186,0.00044108,120]
[356234291,1742113857633,-638.03,0.00044108,120]
[356234292,1742113857642,-688.14,0.00044108,120]
[356234293,1742113857652,-547.37,0.00044108,7]
[356234294,1742113857662,-500.0,0.00044109,120]
[356234295,1742113857671,-500.0,0.00044109,120]
[356234296,1742113857680,-500.0,0.00044109,120]
[356234297,1742113857689,-500.0,0.00044109,120]
[356234298,1742113857698,-537.79,0.00044109,120]
[356234299,1742113857707,-500.0,0.00044109,120]
[356234300,1742113857717,-500.0,0.00044109,120]
[356234301,1742113857726,-500.0,0.00044109,120]
[356234302,1742113857736,-500.0,0.00044109,120]
[356234303,1742113857745,-500.0,0.00044109,120]
[356234304,1742113857755,-1024.83,0.00044109,120]
[356234305,1742113857764,-500.0,0.00044109,120]
[356234306,1742113857773,-500.0,0.00044109,120]
[356234307,1742113857783,-500.0,0.00044109,120]
[356234308,1742113857793,-547.02,0.00044109,120]
[356234309,1742113857802,-990.9,0.00044109,120]
[356234310,1742113857812,-257.70492741,0.00044109,120]
[356234311,1742113857822,-500.0,0.00044109,120]
[356234312,1742113857831,-882.55,0.00044109,120]
[356234313,1742113857841,-500.0,0.00044109,120]
[356234314,1742113857851,-500.0,0.00044109,120]
[356234315,1742113857861,-500.0,0.00044109,120]
[356234316,1742113857870,-500.0,0.00044109,120]
[356234317,1742113857880,-625.31,0.00044109,120]
[356234318,1742113857889,-2195.71,0.00044109,2]
[356234319,1742113857899,-500.0,0.00044109,120]
[356234320,1742113857908,-500.0,0.00044109,120]
[356234321,1742113857917,-455.24278626,0.00044109,120]
[356234322,1742113857927,-500.0,0.00044109,120]
[356234323,1742113857937,-861.19731049,0.000442,120]
[356234324,1742113857947,-861.19731049,0.000442,120]
[356234325,1742113857956,-861.19731049,0.000442,120]
[356234326,1742113857966,-861.19731049,0.000442,120]
[356234327,1742113857976,-861.19731049,0.000442,120]
[356234328,1742113857986,-861.19731049,0.000442,120]
[356234329,1742113857995,-861.19731049,0.000442,120]
[356234330,1742113858005,-861.19731049,0.000442,120]
[356234331,1742113858014,-861.19731049,0.000442,120]
[356234332,1742113858024,-861.19731049,0.000442,120]
[356234333,1742113858033,-861.19731049,0.000442,120]
[356234334,1742113858043,-861.19731049,0.000442,120]
[356234335,1742113858052,-861.19731049,0.000442,120]
[356234336,1742113858062,-861.19731049,0.000442,120]
[356234337,1742113858071,-861.19731049,0.000442,120]
[356234338,1742113858082,-861.19731049,0.000442,120]
[356234339,1742113858092,-861.19731049,0.000442,120]
[356234340,1742113858101,-861.19731049,0.000442,120]
[356234341,1742113858111,-861.19731049,0.000442,120]
[356234342,1742113858120,-861.19,0.000442,120]
[356234343,1742113858130,-2009.46039114,0.000442,120]
[356234344,1742113858140,-2009.46039114,0.000442,120]
[356234345,1742113858149,-2009.46039114,0.000442,120]
[356234346,1742113858159,-2009.46039114,0.000442,120]
[356234347,1742113858170,-2009.46039114,0.000442,120]
[356234348,1742113858179,-2009.46039114,0.000442,120]
[356234349,1742113858188,-2009.46039114,0.000442,120]
[356234350,1742113858197,-2009.46039114,0.000442,120]
[356234351,1742113858207,-2009.46039114,0.000442,120]
[356234352,1742113858218,-2009.46039114,0.000442,120]
[356234353,1742113858228,-601.73219583,0.000442,120]
[356234354,1742113858237,-601.73219583,0.000442,120]
[356234355,1742113858247,-601.73219583,0.000442,120]
[356234356,1742113858256,-601.73219583,0.000442,120]
[356234357,1742113858266,-601.73219583,0.000442,120]
[356234358,1742113858276,-601.73219583,0.000442,120]
[356234359,1742113858286,-601.73219583,0.000442,120]
[356234360,1742113858295,-601.73219583,0.000442,120]
[356234361,1742113858305,-601.73219583,0.000442,120]
[356234362,1742113858314,-601.73219583,0.000442,120]
[356234363,1742113858324,-601.73219583,0.000442,120]
[356234364,1742113858333,-601.73219583,0.000442,120]
[356234365,1742113858342,-601.73219583,0.000442,120]
[356234366,1742113858352,-601.73219583,0.000442,120]
[356234367,1742113858362,-601.73219583,0.000442,120]
[356234368,1742113858371,-601.73219583,0.000442,120]
[356234369,1742113858381,-601.73219583,0.000442,120]
[356234370,1742113858391,-601.73219583,0.000442,120]
[356234371,1742113858400,-601.73219583,0.000442,120]
[356234372,1742113858409,-601.73,0.000442,120]
[356234373,1742113858419,-1404.04179027,0.000442,120]
[356234374,1742113858428,-1404.04179027,0.000442,120]
[356234375,1742113858437,-1404.04179027,0.000442,120]
[356234376,1742113858447,-1404.04179027,0.000442,120]
[356234377,1742113858456,-1404.04179027,0.000442,120]
[356234378,1742113858465,-1404.04179027,0.000442,120]
[356234379,1742113858476,-1404.04179027,0.000442,120]
[356234380,1742113858486,-1404.04179027,0.000442,120]
[356234381,1742113858495,-1404.04179027,0.000442,120]
[356234382,1742113858506,-1404.04179027,0.000442,120]
[356234383,1742113858518,-167.27035013,0.000442,19]
[356234384,1742113858529,-217.18103488,0.000442,14]
[356234385,1742113858542,-169.25835048,0.000442,120]
[356234386,1742113858553,-712.24207574,0.0004422,30]
[356234387,1742113858565,-268.61,0.00044239,2]
[356234388,1742113858575,-163.87,0.00044239,2]
[356234389,1742113858585,-150.0,0.00044283,30]
[356234390,1742113858595,-150.0,0.00044289,120]
[356234391,1742113858606,-12000.0,0.00044292,8]
[356234392,1742113858617,-322002.86334723,0.00044295,30]
[356234393,1742113858628,-336230.78219591,0.000443,5]
[356234394,1742113858639,-1251093.16776503,0.000443,7]
[356234395,1742113858651,-206.07898801,0.000443,7]
[356234396,1742113858662,-2000.0,0.000443,120]
[356234397,1742113858674,-2110.0,0.000443,30]
[356234398,1742113858686,-264.411591,0.000443,14]
[356234399,1742113858698,-151.0,0.000443,14]
[356234400,1742113858710,-1235.5120643,0.0004434,2]
[356234401,1742113858722,-50030.0,0.0004437,31]
[356234402,1742113858735,-500.0,0.00044382,120]
[356234403,1742113858746,-500.0,0.00044382,120]
[356234404,1742113858757,-500.0,0.00044382,120]
[356234405,1742113858767,-500.0,0.00044382,120]
[356234406,1742113858778,-500.0,0.00044382,120]
[356234407,1742113858789,-500.0,0.00044382,120]
[356234408,1742113858799,-500.0,0.00044382,120]
[356234409,1742113858811,-500.0,0.00044382,120]
[356234410,1742113858824,-500.0,0.00044382,2]
[356234411,1742113858835,-500.0,0.00044382,120]
[356234412,1742113858846,-500.0,0.00044382,120]
[356234413,1742113858858,-500.0,0.00044382,120]
[356234414,1742113858871,-580.34,0.00044382,120]
[356234415,1742113858883,-421.14369508,0.00044382,120]
[356234416,1742113858897,-500.0,0.00044382,120]
[356234417,1742113858909,-500.0,0.00044382,120]
[356234418,1742113858921,-500.0,0.00044382,120]
[356234419,1742113858933,-500.0,0.00044382,120]
[356234420,1742113858945,-500.0,0.00044382,120]
[356234421,1742113858957,-500.0,0.00044382,120]
[356234422,1742113858968,-617.41,0.00044382,120]
[356234423,1742113858979,-512.78,0.00044382,120]
[356234424,1742113858991,-500.0,0.00044382,120]
[356234425,1742113859002,-500.0,0.00044382,120]
[356234426,1742113859013,-500.0,0.00044382,120]
[356234427,1742113859024,-480.36200261,0.00044382,120]
[356234428,1742113859036,-500.0,0.00044382,120]
[356234429,1742113859048,-500.0,0.00044382,120]
[356234430,1742113859061,-500.0,0.00044382,10]
[356234431,1742113859073,-500.0,0.00044382,120]
[356234432,1742113859084,-500.0,0.00044382,120]
[356234433,1742113859095,-500.0,0.00044382,120]
[356234434,1742113859107,-500.0,0.00044382,120]
[356234435,1742113859118,-500.0,0.00044382,100]
[356234436,1742113859129,-500.0,0.00044382,120]
[356234437,1742113859140,-500.0,0.00044382,120]
[356234438,1742113859152,-500.0,0.00044382,120]
[356234439,1742113859163,-337.64094561,0.00044382,120]
[356234440,1742113859174,-500.0,0.00044382,120]
[356234441,1742113859186,-608.2,0.00044382,120]
[356234442,1742113859197,-958.42,0.00044382,120]
[356234443,1742113859208,-500.0,0.00044382,120]
[356234444,1742113859220,-631.29,0.00044382,120]
[356234445,1742113859232,-500.0,0.00044382,120]
[356234446,1742113859244,-500.0,0.00044382,120]
[356234447,1742113859254,-500.0,0.00044382,120]
[356234448,1742113859265,-500.0,0.00044382,120]
[356234449,1742113859276,-500.0,0.00044382,120]
[356234450,1742113859287,-500.0,0.00044382,120]
[356234451,1742113859298,-873.48,0.00044382,120]
[356234452,1742113859307,-500.0,0.00044382,120]
[356234453,1742113859319,-500.0,0.00044382,120]
[356234454,1742113859329,-245.94562812,0.00044382,120]
[356234455,1742113859340,-500.0,0.00044382,120]
[356234456,1742113859350,-500.0,0.00044382,120]
[356234457,1742113859363,-327.43359823,0.00044382,120]
[356234458,1742113859374,-500.0,0.00044382,120]
[356234459,1742113859386,-727.99,0.00044382,120]
[356234460,1742113859400,-512.48871607,0.00044382,120]
[356234461,1742113859411,-500.0,0.00044382,120]
[356234462,1742113859421,-474.61599363,0.00044382,120]
[356234463,1742113859432,-500.0,0.00044382,120]
[356234464,1742113859443,-544.7,0.00044382,120]
[356234465,1742113859454,-500.0,0.00044382,120]
[356234466,1742113859463,-534.56,0.00044382,120]
[356234467,1742113859474,-500.0,0.00044382,120]
[356234468,1742113859487,-500.0,0.00044382,120]
[356234469,1742113859499,-500.0,0.00044382,120]
[356234470,1742113859510,-500.0,0.00044382,120]
[356234471,1742113859522,-611.3,0.00044382,120]
[356234472,1742113859534,-1660.0,0.00044382,120]
[356234473,1742113859545,-500.0,0.00044382,120]
[356234474,1742113859557,-500.0,0.00044382,120]
[356234475,1742113859567,-500.0,0.00044382,120]
[356234476,1742113859578,-262.49656051,0.00044382,120]
[356234477,1742113859588,-500.0,0.00044382,120]
[356234478,1742113859597,-500.0,0.00044382,120]
[356234479,1742113859607,-500.0,0.00044382,120]
[356234480,1742113859620,-500.0,0.00044382,120]
[356234481,1742113859630,-500.0,0.00044382,120]
[356234482,1742113859640,-500.0,0.00044382,120]
[356234483,1742113859650,-638.03,0.00044382,120]
[356234484,1742113859661,-688.14,0.00044382,120]
[356234485,1742113859671,-547.37,0.00044382,7]
[356234486,1742113859681,-500.0,0.00044383,120]
[356234487,1742113859692,-500.0,0.00044383,120]
[356234488,1742113859702,-500.0,0.00044383,120]
[356234489,1742113859713,-500.0,0.00044383,120]
[356234490,1742113859723,-537.79,0.00044383,120]
[356234491,1742113859733,-500.0,0.00044383,120]
[356234492,1742113859743,-500.0,0.00044383,120]
[356234493,1742113859754,-500.0,0.00044383,120]
[356234494,1742113859765,-500.0,0.00044383,120]
[356234495,1742113859776,-500.0,0.00044383,120]
[356234496,1742113859787,-1024.83,0.00044383,120]
[356234497,1742113859797,-500.0,0.00044383,120]
[356234498,1742113859808,-357.90113231,0.00044383,120]
[356234499,1742113859820,-500.0,0.00044383,120]
[356234500,1742113859831,-547.02,0.00044383,120]
[356234501,1742113859841,-990.9,0.00044383,120]
[356234502,1742113859852,-500.0,0.00044383,120]
[356234503,1742113859863,-882.55,0.00044383,120]
[356234504,1742113859874,-500.0,0.00044383,120]
[356234505,1742113859886,-500.0,0.00044383,120]
[356234506,1742113859896,-500.0,0.00044383,120]
[356234507,1742113859910,-625.31,0.00044383,120]
[356234508,1742113859922,-2195.71,0.00044383,2]
[356234509,1742113859932,-500.0,0.00044383,120]
[356234510,1742113859943,-500.0,0.00044383,120]
[356234511,1742113859954,-500.0,0.00044383,120]
[356234512,1742113859965,-13000.0,0.00044395,120]
[356234513,1742113859975,-548.98,0.00044444,2]
[356234514,1742113859986,-500.0,0.00044444,2]
[356234515,1742113859996,-500.0,0.00044444,2]
[356234516,1742113860007,-500.0,0.00044444,2]
[356234517,1742113860017,-500.0,0.00044444,2]
[356234518,1742113860028,-500.0,0.00044444,2]
[356234519,1742113860039,-500.0,0.00044444,2]
[356234520,1742113860050,-500.0,0.00044444,2]
[356234521,1742113860062,-500.0,0.00044444,2]
[356234522,1742113860072,-500.0,0.00044444,2]
[356234523,1742113860083,-500.0,0.00044444,2]
[356234524,1742113860095,-500.0,0.00044444,2]
[356234525,1742113860105,-2009.46039114,0.00044499,120]
[356234526,1742113860116,-1404.04179027,0.00044499,120]
[356234527,1742113860126,-221.15903139,0.000445,120]
[356234528,1742113860136,-273.56,0.000445,120]
[356234529,1742113860146,-800.0,0.00044534,120]
[356234530,1742113860156,-161.0,0.000446,120]
[356234531,1742113860167,-200.0,0.00044609,120]
[356234532,1742113860179,-500.0,0.00044656,120]
[356234533,1742113860191,-500.0,0.00044656,120]
[356234534,1742113860201,-500.0,0.00044656,120]
[356234535,1742113860212,-500.0,0.00044656,120]
[356234536,1742113860223,-500.0,0.00044656,120]
[356234537,1742113860236,-500.0,0.00044656,120]
[356234538,1742113860247,-500.0,0.00044656,120]
[356234539,1742113860258,-500.0,0.00044656,120]
[356234540,1742113860270,-500.0,0.00044656,2]
[356234541,1742113860282,-291.85873835,0.00044656,120]
[356234542,1742113860293,-500.0,0.00044656,120]
[356234543,1742113860305,-500.0,0.00044656,120]
[356234544,1742113860318,-580.34,0.00044656,120]
[356234545,1742113860329,-500.0,0.00044656,120]
[356234546,1742113860341,-500.0,0.00044656,120]
[356234547,1742113860353,-500.0,0.00044656,120]
[356234548,1742113860365,-500.0,0.00044656,120]
[356234549,1742113860378,-500.0,0.00044656,120]
[356234550,1742113860390,-500.0,0.00044656,120]
[356234551,1742113860403,-617.41,0.00044656,120]
[356234552,1742113860415,-512.78,0.00044656,120]
[356234553,1742113860428,-500.0,0.00044656,120]
[356234554,1742113860440,-500.0,0.00044656,120]
[356234555,1742113860451,-500.0,0.00044656,120]
[356234556,1742113860462,-500.0,0.00044656,120]
[356234557,1742113860472,-500.0,0.00044656,120]
[356234558,1742113860486,-500.0,0.00044656,10]
[356234559,1742113860497,-541.41491176,0.00044656,120]
[356234560,1742113860508,-500.0,0.00044656,120]
[356234561,1742113860519,-518.1793259,0.00044656,120]
[356234562,1742113860531,-167.58947624,0.00044656,120]
[356234563,1742113860543,-500.0,0.00044656,100]
[356234564,1742113860553,-500.0,0.00044656,120]
[356234565,1742113860566,-500.0,0.00044656,120]
[356234566,1742113860576,-500.0,0.00044656,120]
[356234567,1742113860586,-500.0,0.00044656,120]
[356234568,1742113860597,-608.2,0.00044656,120]
[356234569,1742113860608,-958.42,0.00044656,120]
[356234570,1742113860618,-500.0,0.00044656,120]
[356234571,1742113860628,-631.29,0.00044656,120]
[356234572,1742113860638,-500.0,0.00044656,120]
[356234573,1742113860649,-500.0,0.00044656,120]
[356234574,1742113860659,-500.0,0.00044656,120]
[356234575,1742113860669,-500.0,0.00044656,120]
[356234576,1742113860680,-500.0,0.00044656,120]
[356234577,1742113860690,-500.0,0.00044656,120]
[356234578,1742113860700,-873.48,0.00044656,120]
[356234579,1742113860710,-500.0,0.00044656,120]
[356234580,1742113860720,-500.0,0.00044656,120]
[356234581,1742113860731,-500.0,0.00044656,120]
[356234582,1742113860743,-500.0,0.00044656,120]
[356234583,1742113860753,-613.54518325,0.00044656,120]
[356234584,1742113860763,-727.99,0.00044656,120]
[356234585,1742113860773,-500.0,0.00044656,120]
[356234586,1742113860783,-500.0,0.00044656,120]
[356234587,1742113860794,-544.7,0.00044656,120]
[356234588,1742113860805,-500.0,0.00044656,120]
[356234589,1742113860819,-534.56,0.00044656,120]
[356234590,1742113860829,-500.0,0.00044656,120]
[356234591,1742113860840,-500.0,0.00044656,120]
[356234592,1742113860850,-500.0,0.00044656,120]
[356234593,1742113860861,-500.0,0.00044656,120]
[356234594,1742113860872,-611.3,0.00044656,120]
[356234595,1742113860882,-1660.0,0.00044656,120]
[356234596,1742113860893,-500.0,0.00044656,120]
[356234597,1742113860904,-274.58478008,0.00044656,120]
[356234598,1742113860914,-273.46529544,0.00044656,120]
[356234599,1742113860924,-500.0,0.00044656,120]
[356234600,1742113860935,-500.0,0.00044656,120]
[356234601,1742113860944,-500.0,0.00044656,120]
[356234602,1742113860954,-500.0,0.00044656,120]
[356234603,1742113860964,-500.0,0.00044656,120]
[356234604,1742113860975,-342.70413454,0.00044656,120]
[356234605,1742113860985,-638.03,0.00044656,120]
[356234606,1742113860995,-688.14,0.00044656,120]
[356234607,1742113861005,-547.37,0.00044656,7]
[356234608,1742113861015,-500.0,0.00044657,120]
[356234609,1742113861025,-500.0,0.00044657,120]
[356234610,1742113861034,-500.0,0.00044657,120]
[356234611,1742113861044,-500.0,0.00044657,120]
[356234612,1742113861054,-537.79,0.00044657,120]
[356234613,1742113861064,-500.0,0.00044657,120]
[356234614,1742113861073,-247.99711376,0.00044657,120]
[356234615,1742113861083,-500.0,0.00044657,120]
[356234616,1742113861092,-500.0,0.00044657,120]
[356234617,1742113861102,-500.0,0.00044657,120]
[356234618,1742113861111,-1024.83,0.00044657,120]
[356234619,1742113861121,-500.0,0.00044657,120]
[356234620,1742113861130,-500.0,0.00044657,120]
[356234621,1742113861140,-547.02,0.00044657,120]
[356234622,1742113861150,-990.9,0.00044657,120]
[356234623,1742113861161,-500.0,0.00044657,120]
[356234624,1742113861171,-882.55,0.00044657,120]
[356234625,1742113861182,-500.0,0.00044657,120]
[356234626,1742113861193,-500.0,0.00044657,120]
[356234627,1742113861203,-500.0,0.00044657,120]
[356234628,1742113861213,-625.31,0.00044657,120]
[356234629,1742113861223,-2195.71,0.00044657,2]
[356234630,1742113861233,-500.0,0.00044657,120]
[356234631,1742113861243,-500.0,0.00044657,120]
[356234632,1742113861253,-500.0,0.00044657,120]
[356234633,1742113861264,-1828.45916132,0.0004478,62]
[356234634,1742113861274,-2110.0,0.000448,30]
[356234635,1742113861284,-5150.0,0.0004488,34]
[356234636,1742113861294,-1555.12652001,0.000449,30]
[356234637,1742113861399,-701.27687569,0.000449,30]
[356234638,1742113861410,-1371.0,0.000449,60]
[356234639,1742113861420,-163.1076265,0.000449,120]
[356234640,1742113861431,-178.65380453,0.000449,120]
[356234641,1742113861441,-178.65380451,0.000449,120]
[356234642,1742113861451,-178.65380451,0.000449,120]
[356234643,1742113861461,-178.65380451,0.000449,120]
[356234644,1742113861472,-178.65380451,0.000449,120]
[356234645,1742113861483,-500.0,0.0004493,120]
[356234646,1742113861493,-500.0,0.0004493,120]
[356234647,1742113861503,-500.0,0.0004493,120]
[356234648,1742113861514,-412.70416991,0.0004493,120]
[356234649,1742113861827,-500.0,0.00043286,31]
[356234650,1742113861846,-87.29583009,0.0004493,120]
[356234651,1742113861867,-500.0,0.0004493,120]
[356234652,1742113861879,-500.0,0.0004493,120]
[356234653,1742113861890,-500.0,0.0004493,120]
[356234654,1742113861900,-345.02041729,0.0004493,120]
[356234655,1742113862012,-500.0,0.0004356,31]
[356234656,1742113862022,-182.2366252,0.00043834,31]
[356234657,1742113862033,-154.97958271,0.0004493,120]
[356234658,1742113862043,-500.0,0.0004493,2]
[356234659,1742113862053,-500.0,0.0004493,120]
[356234660,1742113862063,-156.64274834,0.0004493,120]
[356234661,1742113862073,-580.34,0.0004493,120]
[356234662,1742113862083,-163.86860786,0.0004493,120]
[356234663,1742113862093,-617.12909398,0.0004493,120]
[356234664,1742113862104,-500.0,0.0004493,120]
[356234665,1742113862116,-500.0,0.0004493,120]
[356234666,1742113862127,-500.0,0.0004493,120]
[356234667,1742113862137,-500.0,0.0004493,120]
[356234668,1742113862147,-617.41,0.0004493,120]
[356234669,1742113862158,-512.78,0.0004493,120]
[356234670,1742113862169,-381.35130549,0.0004493,120]
[356234671,1742113862180,-500.0,0.0004493,120]
[356234672,1742113862191,-583.09163944,0.0004493,120]
[356234673,1742113862201,-152.44054099,0.0004493,120]
[356234674,1742113862214,-347.55945901,0.0004493,120]
[356234675,1742113862224,-356.37266139,0.0004493,120]
[356234676,1742113862235,-500.0,0.0004493,10]
[356234677,1742113862245,-500.0,0.0004493,100]
[356234678,1742113862255,-500.0,0.0004493,120]
[356234679,1742113862266,-500.0,0.0004493,120]
[356234680,1742113862276,-500.0,0.0004493,120]
[356234681,1742113862287,-500.0,0.0004493,120]
[356234682,1742113862298,-608.2,0.0004493,120]
[356234683,1742113862310,-958.42,0.0004493,120]
[356234684,1742113862320,-500.0,0.0004493,120]
[356234685,1742113862331,-631.29,0.0004493,120]
[356234686,1742113862341,-500.0,0.0004493,120]
[356234687,1742113862352,-500.0,0.0004493,120]
[356234688,1742113862362,-425.96674506,0.0004493,120]
[356234689,1742113862373,-347.72707723,0.0004493,120]
[356234690,1742113862383,-500.0,0.0004493,120]
[356234691,1742113862394,-500.0,0.0004493,120]
[356234692,1742113862405,-873.48,0.0004493,120]
[356234693,1742113862415,-302.23270648,0.0004493,120]
[356234694,1742113862425,-500.0,0.0004493,120]
[356234695,1742113862435,-500.0,0.0004493,120]
[356234696,1742113862445,-500.0,0.0004493,120]
[356234697,1742113862454,-727.99,0.0004493,120]
[356234698,1742113862464,-500.0,0.0004493,120]
[356234699,1742113862474,-391.63866427,0.0004493,120]
[356234700,1742113862487,-158.6221487,0.0004493,120]
[356234701,1742113862498,-544.7,0.0004493,120]
[356234702,1742113862508,-500.0,0.0004493,120]
[356234703,1742113862518,-534.56,0.0004493,120]
[356234704,1742113862528,-500.0,0.0004493,120]
[356234705,1742113862538,-500.0,0.0004493,120]
[356234706,1742113862547,-500.0,0.0004493,120]
[356234707,1742113862559,-500.0,0.0004493,120]
[356234708,1742113862570,-611.3,0.0004493,120]
[356234709,1742113862580,-1660.0,0.0004493,120]
[356234710,1742113862591,-500.0,0.0004493,120]
[356234711,1742113862601,-500.0,0.0004493,120]
[356234712,1742113862610,-500.0,0.0004493,120]
[356234713,1742113862620,-500.0,0.0004493,120]
[356234714,1742113862630,-500.0,0.0004493,120]
[356234715,1742113862640,-500.0,0.0004493,120]
[356234716,1742113862650,-638.03,0.0004493,120]
[356234717,1742113862661,-688.14,0.0004493,120]
[356234718,1742113862671,-547.37,0.0004493,7]
[356234719,1742113862681,-198.48261972,0.00044931,120]
[356234720,1742113862694,-135.22989605,0.00044931,120]
[356234721,1742113862705,-500.0,0.00044931,120]
[356234722,1742113862715,-500.0,0.00044931,120]
[356234723,1742113862725,-500.0,0.00044931,120]
[356234724,1742113862735,-537.79,0.00044931,120]
[356234725,1742113862744,-500.0,0.00044931,120]
[356234726,1742113862754,-500.0,0.00044931,120]
[356234727,1742113862764,-414.10312692,0.00044931,120]
[356234728,1742113862774,-359.03728324,0.00044931,120]
[356234729,1742113862783,-1024.83,0.00044931,120]
[356234730,1742113862793,-500.0,0.00044931,120]
[356234731,1742113862804,-500.0,0.00044931,120]
[356234732,1742113862819,-172.74258753,0.00044931,30]
[356234733,1742113862829,-282.14741074,0.00044931,30]
[356234734,1742113862839,-547.02,0.00044931,120]
[356234735,1742113862850,-990.9,0.00044931,120]
[356234736,1742113862860,-500.0,0.00044931,120]
[356234737,1742113862870,-882.55,0.00044931,120]
[356234738,1742113862880,-500.0,0.00044931,120]
[356234739,1742113862894,-500.0,0.00044931,120]
[356234740,1742113862904,-500.0,0.00044931,120]
[356234741,1742113862914,-625.31,0.00044931,120]
[356234742,1742113862924,-4083.0,0.00044931,120]
[356234743,1742113862934,-2195.71,0.00044931,2]
[356234744,1742113862943,-500.0,0.00044931,120]
[356234745,1742113862953,-500.0,0.00044931,120]
[356234746,1742113862962,-500.0,0.00044931,120]
[356234747,1742113862972,-1235.5120643,0.00044969,2]
[356234748,1742113862982,-217.18103484,0.00044983,18]
[356234749,1742113862992,-2009.46039114,0.00044988,120]
[356234750,1742113863002,-1404.04179027,0.00044988,120]
[356234751,1742113863014,-25811.17081053,0.00045,45]
[356234752,1742113864633,-264.1,0.00045,45]
[356234753,1742113864644,-260.62340292,0.00045,45]
[356234754,1742113864656,-9531.20363532,0.00045,45]
[356234755,1742113864667,-271.92,0.00045,45]
[356234756,1742113864679,-755.2,0.00045,45]
[356234757,1742113864798,-13105.78215123,0.00045,45]
[356234758,1742113864808,-2332.60426419,0.00045,7]